fUST/lending_fUST_20250821
["ID","MTS","AMOUNT","RATE_DAILY","PERIOD"]
[380460931,1755781852465,-569.11,0.00022191,3]
[380460932,1755781852474,-480.0,0.00022191,3]
[380460933,1755781852484,-480.0,0.00022191,3]
[380460934,1755781852494,-480.0,0.00022191,3]
[380460935,1755781852503,-480.0,0.00022191,3]
[380460936,1755781852513,-480.0,0.00022191,3]
[380460937,1755781852522,-588.31664871,0.00022191,3]
[380460938,1755781852532,-480.0,0.00022191,3]
[380460939,1755781852544,-480.0,0.00022191,3]
[380460940,1755781852554,-238.02768418,0.00022191,3]
[380460941,1755781852564,-193.40000285,0.00022191,3]
[380460942,1755781852573,-480.0,0.00022191,3]
[380460943,1755781852582,-480.0,0.00022191,3]
[380460944,1755781852592,-480.0,0.00022191,3]
[380460945,1755781852601,-480.0,0.00022191,3]
[380460946,1755781852611,-480.0,0.00022191,3]
[380460947,1755781852620,-480.0,0.00022191,3]
[380460948,1755781852629,-480.0,0.00022191,3]
[380460949,1755781852638,-480.0,0.00022191,3]
[380460950,1755781852648,-480.0,0.00022191,3]
[380460951,1755781852657,-707.76,0.00022191,3]
[380460952,1755781852667,-480.0,0.00022191,3]
[380460953,1755781852676,-461.56245632,0.00022191,3]
[380460954,1755781852686,-480.0,0.00022191,3]
[380460955,1755781852695,-434.38290685,0.00022191,3]
[380460956,1755781852705,-480.0,0.00022191,3]
[380460957,1755781852714,-480.0,0.00022191,3]
[380460958,1755781852723,-480.0,0.00022191,3]
[380460959,1755781852733,-1597.29,0.00022191,3]
[380460960,1755781852742,-480.0,0.00022191,3]
[380460961,1755781852751,-480.0,0.00022191,3]
[380460962,1755781852761,-480.0,0.00022191,3]
[380460963,1755781852770,-762.9,0.00022191,3]
[380460964,1755781852780,-500.0,0.00022191,3]
[380460965,1755781852790,-480.0,0.00022191,3]
[380460966,1755781852800,-480.0,0.00022191,3]
[380460967,1755781852811,-480.0,0.00022191,3]
[380460968,1755781852821,-519.91,0.00022191,3]
[380460969,1755781852831,-480.0,0.00022191,3]
[380460970,1755781852841,-480.0,0.00022191,3]
[380460971,1755781852850,-480.0,0.00022191,3]
[380460972,1755781852859,-383.65292034,0.00022191,3]
[380460973,1755781852868,-383.61011375,0.00022191,3]
[380460974,1755781852878,-480.0,0.00022191,3]
[380460975,1755781852888,-480.0,0.00022191,3]
[380460976,1755781852897,-561.46,0.00022191,3]
[380460977,1755781852907,-480.0,0.00022191,3]
[380460978,1755781852917,-480.0,0.00022191,3]
[380460979,1755781852929,-494.49,0.00022191,3]
[380460980,1755781852938,-969.96,0.00022191,3]
[380460981,1755781852947,-597.89342462,0.00022191,3]
[380460982,1755781852957,-2319.36,0.00022191,3]
[380460983,1755781852967,-480.0,0.00022191,3]
[380460984,1755781852976,-480.0,0.00022191,3]
[380460985,1755781852986,-1006.99,0.00022191,3]
[380460986,1755781852995,-255.20659674,0.00022191,3]
[380460987,1755781853006,-480.0,0.00022191,3]
[380460988,1755781853015,-980.06,0.00022191,3]
[380460989,1755781853025,-480.0,0.00022191,3]
[380460990,1755781853034,-480.0,0.00022191,3]
[380460991,1755781853043,-151.0,0.00022191,7]
[380460992,1755781853052,-286.696422,0.00022191,7]
[380460993,1755781853062,-869.93,0.00022191,3]
[380460994,1755781853071,-624.76,0.00022191,3]
[380460995,1755781853081,-657.43,0.00022191,3]
[380460996,1755781853090,-480.0,0.00022191,3]
[380460997,1755781853100,-480.0,0.00022191,3]
[380460998,1755781853109,-480.0,0.00022191,3]
[380460999,1755781853118,-877.95,0.00022191,3]
[380461000,1755781853128,-480.0,0.00022191,3]
[380461001,1755781853138,-494.7,0.00022191,3]
[380461002,1755781853147,-204.10143602,0.00022191,3]
[380461003,1755781853157,-525.33,0.00022191,3]
[380461004,1755781853166,-498.76,0.00022191,3]
[380461005,1755781853177,-480.0,0.00022191,3]
[380461006,1755781853186,-480.0,0.00022191,3]
[380461007,1755781853196,-1288.41,0.00022191,3]
[380461008,1755781853205,-480.0,0.00022191,3]
[380461009,1755781853214,-702.24,0.00022191,3]
[380461010,1755781853223,-898.87,0.00022191,3]
[380461011,1755781853232,-480.0,0.00022191,3]
[380461012,1755781853242,-480.0,0.00022191,3]
[380461013,1755781853252,-480.0,0.00022191,3]
[380461014,1755781853261,-492.04,0.00022191,3]
[380461015,1755781853270,-480.0,0.00022191,3]
[380461016,1755781853279,-1156.55,0.00022191,3]
[380461017,1755781853289,-504.31,0.00022191,3]
[380461018,1755781853301,-540.84,0.00022191,3]
[380461019,1755781853311,-480.0,0.00022191,3]
[380461020,1755781853320,-151.0,0.00022191,7]
[380461021,1755781853330,-151.0,0.00022191,7]
[380461022,1755781853339,-1093.96,0.00022191,3]
[380461023,1755781853348,-936.19,0.00022191,3]
[380461024,1755781853357,-641.9,0.00022191,3]
[380461025,1755781853367,-318.89478124,0.00022191,3]
[380461026,1755781853376,-722.72,0.00022191,3]
[380461027,1755781853386,-480.0,0.00022191,3]
[380461028,1755781853395,-480.0,0.00022191,3]
[380461029,1755781853405,-480.0,0.00022191,3]
[380461030,1755781853414,-480.0,0.00022191,3]
[380461031,1755781853424,-480.0,0.00022191,3]
[380461032,1755781853433,-480.0,0.00022191,3]
[380461033,1755781853442,-480.0,0.00022191,3]
[380461034,1755781853451,-422.27916544,0.00022191,3]
[380461035,1755781853460,-480.0,0.00022191,3]
[380461036,1755781853470,-662.69,0.00022191,3]
[380461037,1755781853479,-480.0,0.00022191,3]
[380461038,1755781853488,-480.0,0.00022191,3]
[380461039,1755781853498,-831.31,0.00022191,3]
[380461040,1755781853508,-151.0,0.00022191,7]
[380461041,1755781853517,-480.0,0.00022191,3]
[380461042,1755781853527,-480.0,0.00022191,3]
[380461043,1755781853536,-858.06,0.00022191,3]
[380461044,1755781853550,-480.0,0.00022191,3]
[380461045,1755781853559,-666.56,0.00022191,3]
[380461046,1755781853569,-480.0,0.00022191,3]
[380461047,1755781853578,-226.00644,0.00022191,7]
[380461048,1755781853588,-677.64,0.00022191,3]
[380461049,1755781853597,-1757.51,0.00022191,3]
[380461050,1755781853606,-480.0,0.00022191,3]
[380461051,1755781853615,-480.0,0.00022191,3]
[380461052,1755781853625,-480.0,0.00022191,3]
[380461053,1755781853634,-480.0,0.00022191,3]
[380461054,1755781853643,-2538.58,0.00022191,3]
[380461055,1755781853653,-480.0,0.00022191,3]
[380461056,1755781853662,-480.0,0.00022191,3]
[380461057,1755781853671,-480.0,0.00022191,3]
[380461058,1755781853680,-933.74,0.00022191,3]
[380461059,1755781853690,-480.0,0.00022191,3]
[380461060,1755781853699,-480.0,0.00022191,3]
[380461061,1755781853708,-621.53,0.00022191,3]
[380461062,1755781853718,-480.0,0.00022191,3]
[380461063,1755781853728,-480.0,0.00022191,3]
[380461064,1755781853737,-480.0,0.00022191,3]
[380461065,1755781853746,-641.81,0.00022191,3]
[380461066,1755781853756,-480.0,0.00022191,3]
[380461067,1755781853766,-480.0,0.00022191,3]
[380461068,1755781853775,-715.12,0.00022191,3]
[380461069,1755781853785,-480.0,0.00022191,3]
[380461070,1755781853796,-480.0,0.00022191,3]
[380461071,1755781853806,-480.0,0.00022191,3]
[380461072,1755781853816,-480.0,0.00022191,3]
[380461073,1755781853825,-1124.0,0.00022191,3]
[380461074,1755781853834,-1042.88,0.00022191,3]
[380461075,1755781853844,-751.77,0.00022191,3]
[380461076,1755781853854,-480.0,0.00022191,3]
[380461077,1755781853863,-905.35,0.00022191,3]
[380461078,1755781853872,-985.51,0.00022191,3]
[380461079,1755781853882,-480.0,0.00022191,3]
[380461080,1755781853903,-480.0,0.00022191,3]
[380461081,1755781853913,-481.95131074,0.00022191,3]
[380461082,1755781853927,-480.0,0.00022191,3]
[380461083,1755781853936,-480.0,0.00022191,3]
[380461084,1755781853946,-384.90635947,0.00022191,3]
[380461085,1755781853956,-480.0,0.00022191,3]
[380461086,1755781853967,-480.0,0.00022191,3]
[380461087,1755781853977,-586.83,0.00022191,3]
[380461088,1755781853987,-480.0,0.00022191,3]
[380461089,1755781853998,-480.0,0.00022191,3]
[380461090,1755781854008,-480.0,0.00022191,3]
[380461091,1755781854018,-624.17209468,0.00022191,3]
[380461092,1755781854028,-454.33241404,0.00022191,3]
[380461093,1755781854038,-1638.25,0.00022191,3]
[380461094,1755781854050,-480.0,0.00022191,3]
[380461095,1755781854060,-480.0,0.00022191,3]
[380461096,1755781854070,-480.0,0.00022191,3]
[380461097,1755781854080,-480.0,0.00022191,3]
[380461098,1755781854090,-1750.01,0.00022191,3]
[380461099,1755781854100,-376.8935889,0.00022191,3]
[380461100,1755781854109,-480.0,0.00022191,3]
[380461101,1755781854119,-480.0,0.00022191,3]
[380461102,1755781854128,-480.0,0.00022191,3]
[380461103,1755781854138,-2372.2,0.00022191,3]
[380461104,1755781854147,-480.0,0.00022191,3]
[380461105,1755781854157,-1184.27,0.00022191,3]
[380461106,1755781854167,-629.58,0.00022191,3]
[380461107,1755781854177,-1272.49,0.00022191,3]
[380461108,1755781854187,-480.0,0.00022191,3]
[380461109,1755781854197,-480.0,0.00022191,3]
[380461110,1755781854207,-480.0,0.00022191,3]
[380461111,1755781854216,-1449.21,0.00022191,3]
[380461112,1755781854227,-480.0,0.00022191,3]
[380461113,1755781854235,-480.0,0.00022191,3]
[380461114,1755781854245,-480.0,0.00022191,3]
[380461115,1755781854255,-480.0,0.00022191,3]
[380461116,1755781854265,-507.85,0.00022191,3]
[380461117,1755781854274,-151.0,0.00022191,7]
[380461118,1755781854284,-480.0,0.00022191,3]
[380461119,1755781854294,-2543.18,0.00022191,3]
[380461120,1755781854304,-673.27,0.00022191,3]
[380461121,1755781854313,-480.0,0.00022191,3]
[380461122,1755781854323,-151.0,0.00022191,7]
[380461123,1755781854332,-151.0,0.00022191,7]
[380461124,1755781854342,-151.0,0.00022191,7]
[380461125,1755781854352,-151.0,0.00022191,7]
[380461126,1755781854361,-151.0,0.00022191,7]
[380461127,1755781854371,-151.0,0.00022191,7]
[380461128,1755781854380,-480.0,0.00022191,3]
[380461129,1755781854390,-480.0,0.00022191,3]
[380461130,1755781854399,-1294.1,0.00022191,3]
[380461131,1755781854409,-480.0,0.00022191,3]
[380461132,1755781854419,-151.0,0.00022191,7]
[380461133,1755781854428,-151.0,0.00022191,7]
[380461134,1755781854438,-538.42,0.00022191,3]
[380461135,1755781854448,-151.0,0.00022191,7]
[380461136,1755781854457,-181.77173,0.00022191,7]
[380461137,1755781854467,-480.0,0.00022191,3]
[380461138,1755781854476,-545.14,0.00022191,3]
[380461139,1755781854486,-480.0,0.00022191,3]
[380461140,1755781854495,-487.02,0.00022191,3]
[380461141,1755781854505,-480.0,0.00022191,3]
[380461142,1755781854515,-710.97,0.00022191,3]
[380461143,1755781854524,-568.78,0.00022191,3]
[380461144,1755781854534,-612.42,0.00022191,3]
[380461145,1755781854545,-480.0,0.00022191,3]
[380461146,1755781854555,-480.0,0.00022191,3]
[380461147,1755781854565,-480.0,0.00022191,3]
[380461148,1755781854574,-480.0,0.00022191,3]
[380461149,1755781854586,-480.0,0.00022191,3]
[380461150,1755781854596,-480.0,0.00022191,3]
[380461151,1755781854605,-1061.36,0.00022191,3]
[380461152,1755781854615,-634.69,0.00022191,3]
[380461153,1755781854624,-480.0,0.00022191,3]
[380461154,1755781854634,-480.0,0.00022191,3]
[380461155,1755781854644,-480.0,0.00022191,3]
[380461156,1755781854654,-480.0,0.00022191,3]
[380461157,1755781854663,-237.30860796,0.00022191,3]
[380461158,1755781854673,-480.0,0.00022191,3]
[380461159,1755781854682,-480.0,0.00022191,3]
[380461160,1755781854692,-480.0,0.00022191,3]
[380461161,1755781854701,-1407.24,0.00022191,3]
[380461162,1755781854711,-480.0,0.00022191,3]
[380461163,1755781854720,-480.0,0.00022191,3]
[380461164,1755781854731,-551.28,0.00022191,3]
[380461165,1755781854740,-317.1612825,0.00022191,3]
[380461166,1755781854750,-480.0,0.00022191,3]
[380461167,1755781854760,-480.0,0.00022191,3]
[380461168,1755781854769,-591.8,0.00022191,3]
[380461169,1755781854780,-480.0,0.00022191,3]
[380461170,1755781854789,-480.0,0.00022191,3]
[380461171,1755781854800,-480.0,0.00022191,3]
[380461172,1755781854809,-517.87,0.00022191,3]
[380461173,1755781854818,-480.0,0.00022191,3]
[380461174,1755781854828,-4547.66,0.00022191,3]
[380461175,1755781854839,-480.0,0.00022191,3]
[380461176,1755781854849,-480.0,0.00022191,3]
[380461177,1755781854861,-480.0,0.00022191,3]
[380461178,1755781854871,-480.0,0.00022191,3]
[380461179,1755781854880,-480.0,0.00022191,3]
[380461180,1755781854890,-855.27,0.00022191,3]
[380461181,1755781854900,-480.0,0.00022191,3]
[380461182,1755781854910,-1746.58,0.00022191,3]
[380461183,1755781854923,-480.0,0.00022191,3]
[380461184,1755781854933,-666.1,0.00022191,3]
[380461185,1755781854943,-480.0,0.00022191,3]
[380461186,1755781854953,-567.5,0.00022191,3]
[380461187,1755781854964,-519.78,0.00022191,3]
[380461188,1755781854974,-589.26,0.00022191,3]
[380461189,1755781854983,-480.0,0.00022191,3]
[380461190,1755781854994,-480.0,0.00022191,3]
[380461191,1755781855004,-1011.63,0.00022191,3]
[380461192,1755781855014,-480.0,0.00022191,3]
[380461193,1755781855023,-480.0,0.00022191,3]
[380461194,1755781855033,-784.12,0.00022191,3]
[380461195,1755781855043,-480.0,0.00022191,3]
[380461196,1755781855054,-480.0,0.00022191,3]
[380461197,1755781855064,-480.0,0.00022191,3]
[380461198,1755781855074,-501.34,0.00022191,3]
[380461199,1755781855083,-8248.08,0.00022191,3]
[380461200,1755781855094,-653.57,0.00022191,3]
[380461201,1755781855103,-1063.47,0.00022191,3]
[380461202,1755781855113,-480.0,0.00022191,3]
[380461203,1755781855122,-480.0,0.00022191,3]
[380461204,1755781855131,-480.0,0.00022191,3]
[380461205,1755781855141,-480.0,0.00022191,3]
[380461206,1755781855151,-480.0,0.00022191,3]
[380461207,1755781855160,-420.0,0.00022191,3]
[380461208,1755781855170,-480.0,0.00022191,3]
[380461209,1755781855179,-480.0,0.00022191,3]
[380461210,1755781855189,-480.0,0.00022191,3]
[380461211,1755781855199,-688.85,0.00022191,3]
[380461212,1755781855208,-480.0,0.00022191,3]
[380461213,1755781855218,-480.0,0.00022191,3]
[380461214,1755781855228,-913.56,0.00022191,2]
[380461215,1755781855238,-480.0,0.00022191,3]
[380461216,1755781855247,-4534.11,0.00022191,3]
[380461217,1755781855257,-7830.46,0.00022191,3]
[380461218,1755781855267,-480.0,0.00022191,3]
[380461219,1755781855278,-480.0,0.00022191,3]
[380461220,1755781855287,-873.95,0.00022191,3]
[380461221,1755781855300,-2550.03,0.00022191,3]
[380461222,1755781855310,-480.0,0.00022191,3]
[380461223,1755781855319,-480.0,0.00022191,3]
[380461224,1755781855331,-10502.11,0.00022191,3]
[380461225,1755781855340,-271.577328,0.00022191,7]
[380461226,1755781855351,-480.0,0.00022191,3]
[380461227,1755781855360,-1914.32,0.00022191,3]
[380461228,1755781855369,-2578.1,0.00022191,3]
[380461229,1755781855379,-1423.35,0.00022191,3]
[380461230,1755781855388,-1185.06,0.00022191,3]
[380461231,1755781855398,-555.99,0.00022191,3]
[380461232,1755781855408,-2504.57,0.00022191,3]
[380461233,1755781855417,-6269.21,0.00022191,3]
[380461234,1755781855427,-480.0,0.00022191,3]
[380461235,1755781855437,-480.0,0.00022191,3]
[380461236,1755781855446,-1039.54,0.00022191,3]
[380461237,1755781855455,-480.0,0.00022191,3]
[380461238,1755781855465,-465.13764292,0.00022191,3]
[380461239,1755781855475,-828.83,0.00022191,3]
[380461240,1755781855484,-480.0,0.00022191,3]
[380461241,1755781855494,-480.0,0.00022191,3]
[380461242,1755781855503,-480.0,0.00022191,3]
[380461243,1755781855513,-1159.94,0.00022191,3]
[380461244,1755781855522,-561.17,0.00022191,3]
[380461245,1755781855532,-480.0,0.00022191,3]
[380461246,1755781855541,-480.0,0.00022191,3]
[380461247,1755781855553,-1227.4,0.00022191,3]
[380461248,1755781855563,-1662.57,0.00022191,3]
[380461249,1755781855574,-579.67,0.00022191,3]
[380461250,1755781855585,-480.0,0.00022191,3]
[380461251,1755781855595,-2271.59,0.00022191,3]
[380461252,1755781855605,-480.0,0.00022191,3]
[380461253,1755781855615,-480.0,0.00022191,3]
[380461254,1755781855625,-151.0,0.00022191,7]
[380461255,1755781855635,-3515.75,0.00022191,3]
[380461256,1755781855645,-285.12785855,0.00022191,3]
[380461257,1755781855656,-1832.02,0.00022191,3]
[380461258,1755781855666,-2844.74,0.00022191,3]
[380461259,1755781855676,-1319.63,0.00022191,3]
[380461260,1755781855686,-151.0,0.00022191,7]
[380461261,1755781855696,-480.0,0.00022191,3]
[380461262,1755781855707,-563.33967602,0.00022191,3]
[380461263,1755781855716,-391.68371918,0.00022191,3]
[380461264,1755781855726,-480.0,0.00022191,3]
[380461265,1755781855736,-480.0,0.00022191,3]
[380461266,1755781855746,-500.0,0.00022191,3]
[380461267,1755781855756,-7476.37,0.00022191,3]
[380461268,1755781855766,-873.37,0.00022191,3]
[380461269,1755781855776,-714.68,0.00022191,3]
[380461270,1755781855785,-480.0,0.00022191,3]
[380461271,1755781855796,-480.0,0.00022191,3]
[380461272,1755781855806,-480.0,0.00022191,3]
[380461273,1755781855816,-480.0,0.00022191,3]
[380461274,1755781855825,-480.0,0.00022191,3]
[380461275,1755781855835,-480.0,0.00022191,3]
[380461276,1755781855846,-480.0,0.00022191,3]
[380461277,1755781855855,-480.0,0.00022191,3]
[380461278,1755781855865,-900.39,0.00022191,3]
[380461279,1755781855875,-406.25689327,0.00022191,3]
[380461280,1755781855885,-4857.81,0.00022191,3]
[380461281,1755781855895,-480.0,0.00022191,3]
[380461282,1755781855906,-480.0,0.00022191,3]
[380461283,1755781855917,-1035.5,0.00022191,3]
[380461284,1755781855929,-480.0,0.00022191,3]
[380461285,1755781855939,-640.0,0.00022191,3]
[380461286,1755781855949,-480.0,0.00022191,3]
[380461287,1755781855959,-480.0,0.00022191,3]
[380461288,1755781855969,-752.75,0.00022191,3]
[380461289,1755781855979,-480.0,0.00022191,3]
[380461290,1755781855989,-2822.53,0.00022191,3]
[380461291,1755781855999,-480.0,0.00022191,3]
[380461292,1755781856010,-480.0,0.00022191,3]
[380461293,1755781856019,-1512.66,0.00022191,3]
[380461294,1755781856029,-480.0,0.00022191,3]
[380461295,1755781856039,-618.51058851,0.00022191,3]
[380461296,1755781856050,-724.96,0.00022191,3]
[380461297,1755781856060,-742.54,0.00022191,3]
[380461298,1755781856070,-951.48,0.00022191,3]
[380461299,1755781856080,-2544.51,0.00022191,3]
[380461300,1755781856090,-2165.59,0.00022191,3]
[380461301,1755781856100,-480.0,0.00022191,3]
[380461302,1755781856110,-480.0,0.00022191,3]
[380461303,1755781856121,-722.71,0.00022191,3]
[380461304,1755781856131,-480.0,0.00022191,3]
[380461305,1755781856141,-480.0,0.00022191,3]
[380461306,1755781856152,-480.0,0.00022191,3]
[380461307,1755781856164,-480.0,0.00022191,3]
[380461308,1755781856334,-521.64,0.00022191,3]
[380461309,1755781856354,-1107.69,0.00022191,3]
[380461310,1755781856364,-1865.75,0.00022191,3]
[380461311,1755781856373,-4366.24,0.00022191,3]
[380461312,1755781856383,-3945.99,0.00022191,3]
[380461313,1755781856392,-480.0,0.00022191,3]
[380461314,1755781856401,-1193.29,0.00022191,3]
[380461315,1755781856411,-480.0,0.00022191,3]
[380461316,1755781856421,-1642.6,0.00022191,3]
[380461317,1755781856430,-451.3656674,0.00022191,3]
[380461318,1755781856439,-2057.06,0.00022191,3]
[380461319,1755781856449,-151.0,0.00022191,7]
[380461320,1755781856458,-1494.74,0.00022191,3]
[380461321,1755781856468,-480.0,0.00022191,3]
[380461322,1755781856477,-480.0,0.00022191,3]
[380461323,1755781856487,-480.0,0.00022191,3]
[380461324,1755781856496,-1858.17,0.00022191,3]
[380461325,1755781856505,-617.16919667,0.00022191,3]
[380461326,1755781856515,-884.94,0.00022191,3]
[380461327,1755781856524,-609.87,0.00022191,3]
[380461328,1755781856534,-480.0,0.00022191,3]
[380461329,1755781856543,-813.7,0.00022191,3]
[380461330,1755781856553,-1605.62,0.00022191,3]
[380461331,1755781856563,-1410.65,0.00022191,3]
[380461332,1755781856572,-1172.33,0.00022191,3]
[380461333,1755781856581,-1264.54,0.00022191,3]
[380461334,1755781856590,-480.0,0.00022191,3]
[380461335,1755781856600,-480.0,0.00022191,3]
[380461336,1755781856610,-1284.89,0.00022191,3]
[380461337,1755781856620,-14778.53,0.00022191,3]
[380461338,1755781856629,-480.0,0.00022191,3]
[380461339,1755781856638,-480.0,0.00022191,3]
[380461340,1755781856647,-2469.04,0.00022191,3]
[380461341,1755781856657,-480.0,0.00022191,3]
[380461342,1755781856666,-582.75,0.00022191,3]
[380461343,1755781856675,-480.0,0.00022191,3]
[380461344,1755781856685,-480.0,0.00022191,3]
[380461345,1755781856695,-4587.59,0.00022191,3]
[380461346,1755781856704,-2194.52,0.00022191,3]
[380461347,1755781856714,-480.0,0.00022191,3]
[380461348,1755781856723,-480.0,0.00022191,3]
[380461349,1755781856733,-480.0,0.00022191,3]
[380461350,1755781856742,-2283.22,0.00022191,3]
[380461351,1755781856754,-5569.86,0.00022191,3]
[380461352,1755781856764,-480.0,0.00022191,3]
[380461353,1755781856773,-999.63,0.00022191,3]
[380461354,1755781856783,-5861.91,0.00022191,3]
[380461355,1755781856792,-480.0,0.00022191,3]
[380461356,1755781856803,-595.27329515,0.00022191,3]
[380461357,1755781856813,-480.0,0.00022191,3]
[380461358,1755781856822,-781.91,0.00022191,3]
[380461359,1755781856831,-480.0,0.00022191,3]
[380461360,1755781856841,-607.1,0.00022191,3]
[380461361,1755781856850,-480.0,0.00022191,3]
[380461362,1755781856860,-12831.19,0.00022191,3]
[380461363,1755781856870,-4217.27,0.00022191,3]
[380461364,1755781856879,-480.0,0.00022191,3]
[380461365,1755781856888,-480.0,0.00022191,3]
[380461366,1755781856898,-992.67,0.00022191,3]
[380461367,1755781856907,-508.84,0.00022191,3]
[380461368,1755781856917,-480.0,0.00022191,3]
[380461369,1755781856931,-480.0,0.00022191,3]
[380461370,1755781856940,-401.4791727,0.00022191,3]
[380461371,1755781856950,-480.0,0.00022191,3]
[380461372,1755781856959,-480.0,0.00022191,3]
[380461373,1755781856970,-480.0,0.00022191,3]
[380461374,1755781856979,-480.0,0.00022191,3]
[380461375,1755781856989,-522.46,0.00022191,3]
[380461376,1755781856999,-749.26,0.00022191,3]
[380461377,1755781857008,-480.0,0.00022191,3]
[380461378,1755781857017,-386.77830855,0.00022191,3]
[380461379,1755781857026,-532.07,0.00022191,3]
[380461380,1755781857036,-2002.4,0.00022191,3]
[380461381,1755781857046,-480.0,0.00022191,3]
[380461382,1755781857055,-480.0,0.00022191,3]
[380461383,1755781857064,-480.0,0.00022191,3]
[380461384,1755781857074,-480.0,0.00022191,3]
[380461385,1755781857084,-480.0,0.00022191,3]
[380461386,1755781857094,-505.33,0.00022191,3]
[380461387,1755781857103,-153.0,0.00022192,2]
[380461388,1755781857112,-581.1080994,0.00022192,2]
[380461389,1755781857122,-153.0,0.00022192,2]
[380461390,1755781857131,-580.4657835,0.00022192,2]
[380461391,1755781857140,-250.0,0.000222,10]
[380461392,1755781857149,-157.57769083,0.000222,69]
[380461393,1755781857159,-342.0,0.00022202,2]
[380461394,1755781857168,-342.0,0.00022235,2]
[380461395,1755781857177,-168.0,0.00022243,2]
[380461396,1755781857187,-151.0,0.0002225,2]
[380461397,1755781857196,-17867.85263853,0.0002225,2]
[380461398,1755781857206,-447.51469025,0.00022274,2]
[380461399,1755781857215,-1970.61201807,0.00022291,2]
[380461400,1755781857224,-250.0,0.000223,10]
[380461401,1755781857233,-600.0,0.00022323,2]
[380461402,1755781857242,-342.0,0.00022353,2]
[380461403,1755781857254,-447.51469025,0.00022356,2]
[380461404,1755781857264,-1731.98260838,0.00022365,2]
[380461405,1755781857273,-342.0,0.00022391,2]
[380461406,1755781857282,-250.0,0.000224,10]
[380461407,1755781857291,-267.0,0.00022438,2]
[380461408,1755781857301,-267.0,0.00022445,2]
[380461409,1755781857311,-151.0,0.00022465,3]
[380461410,1755781857320,-500.0,0.00022465,3]
[380461411,1755781857330,-151.0,0.00022465,3]
[380461412,1755781857343,-198.0,0.00022465,3]
[380461413,1755781857352,-501.23372552,0.00022465,3]
[380461414,1755781857361,-151.0,0.00022465,3]
[380461415,1755781857371,-272.13780475,0.00022465,3]
[380461416,1755781857381,-500.0,0.00022465,3]
[380461417,1755781857390,-151.0,0.00022465,3]
[380461418,1755781857399,-151.0,0.00022465,3]
[380461419,1755781857409,-151.0,0.00022465,3]
[380461420,1755781857418,-151.0,0.00022465,3]
[380461421,1755781857428,-449.0,0.00022465,3]
[380461422,1755781857438,-151.0,0.00022465,3]
[380461423,1755781857448,-151.0,0.00022465,3]
[380461424,1755781857457,-203.56997802,0.00022465,3]
[380461425,1755781857466,-228.45903553,0.00022465,3]
[380461426,1755781857475,-1475.36,0.00022465,3]
[380461427,1755781857485,-480.0,0.00022465,3]
[380461428,1755781857495,-1261.29,0.00022465,3]
[380461429,1755781857505,-480.0,0.00022465,3]
[380461430,1755781857514,-480.0,0.00022465,3]